fUSD/lending_fUSD_20250225
["ID","MTS","AMOUNT","RATE_DAILY","PERIOD"]
[354477588,1740523856511,-500.0,0.00047945,120]
[354477589,1740523856522,-500.0,0.00047945,120]
[354477590,1740523856531,-500.0,0.00047945,120]
[354477591,1740523856542,-5029.55,0.00047945,120]
[354477592,1740523856552,-500.0,0.00047945,120]
[354477593,1740523856563,-3467.63,0.00047945,120]
[354477594,1740523856573,-500.0,0.00047945,120]
[354477595,1740523856583,-500.0,0.00047945,120]
[354477596,1740523856593,-2203.36,0.00047945,120]
[354477597,1740523856603,-671.01,0.00047945,120]
[354477598,1740523856612,-500.0,0.00047945,120]
[354477599,1740523856622,-3071.38,0.00047945,120]
[354477600,1740523856631,-551.69,0.00047945,120]
[354477601,1740523856641,-1522.25,0.00047945,120]
[354477602,1740523856651,-3711.8,0.00047945,120]
[354477603,1740523856660,-500.0,0.00047945,120]
[354477604,1740523856670,-500.0,0.00047945,120]
[354477605,1740523856679,-500.0,0.00047945,120]
[354477606,1740523856689,-564.54532913,0.00047945,120]
[354477607,1740523856699,-506.29928854,0.00047945,120]
[354477608,1740523856708,-3960.02,0.00047945,120]
[354477609,1740523856718,-4099.32,0.00047945,120]
[354477610,1740523856728,-4671.2,0.00047945,120]
[354477611,1740523856738,-500.0,0.00047945,120]
[354477612,1740523856747,-500.0,0.00047945,120]
[354477613,1740523856757,-3780.25,0.00047945,120]
[354477614,1740523856766,-500.0,0.00047945,120]
[354477615,1740523856776,-1280.88,0.00047945,120]
[354477616,1740523856786,-500.0,0.00047945,120]
[354477617,1740523856795,-2591.52,0.00047945,120]
[354477618,1740523856804,-4963.55,0.00047945,120]
[354477619,1740523856813,-500.0,0.00047945,120]
[354477620,1740523856823,-500.0,0.00047945,120]
[354477621,1740523856831,-6256.61,0.00047945,120]
[354477622,1740523856841,-500.0,0.00047945,120]
[354477623,1740523856851,-616.79,0.00047945,120]
[354477624,1740523856860,-500.0,0.00047945,120]
[354477625,1740523856869,-643.58,0.00047945,120]
[354477626,1740523856879,-768.14,0.00047945,120]
[354477627,1740523856888,-500.0,0.00047945,120]
[354477628,1740523856897,-509.53,0.00047945,120]
[354477629,1740523856907,-500.0,0.00047945,120]
[354477630,1740523856916,-1305.38,0.00047945,7]
[354477631,1740523856926,-595.23,0.00047945,120]
[354477632,1740523856935,-4247.17,0.00047945,120]
[354477633,1740523856944,-500.0,0.00047945,120]
[354477634,1740523856953,-3964.13,0.00047945,120]
[354477635,1740523856962,-1328.12,0.00047945,120]
[354477636,1740523856972,-500.0,0.00047945,120]
[354477637,1740523856981,-545.30018234,0.00047945,120]
[354477638,1740523856991,-500.0,0.00047945,120]
[354477639,1740523857000,-3898.94,0.00047945,120]
[354477640,1740523857010,-500.0,0.00047945,120]
[354477641,1740523857020,-500.0,0.00047945,120]
[354477642,1740523857029,-5303.55,0.00047945,120]
[354477643,1740523857038,-570.36,0.00047945,120]
[354477644,1740523857047,-2763.31,0.00047945,120]
[354477645,1740523857056,-500.0,0.00047945,120]
[354477646,1740523857066,-2107.57,0.00047945,120]
[354477647,1740523857075,-500.0,0.00047945,120]
[354477648,1740523857086,-946.05,0.00047945,120]
[354477649,1740523857099,-500.0,0.00047945,120]
[354477650,1740523857108,-500.0,0.00047945,120]
[354477651,1740523857118,-799.82,0.00047945,120]
[354477652,1740523857128,-1452.98,0.00047945,120]
[354477653,1740523857138,-872.21,0.00047945,120]
[354477654,1740523857147,-1308.96,0.00047945,120]
[354477655,1740523857157,-5564.94,0.00047945,100]
[354477656,1740523857167,-922.97,0.00047945,120]
[354477657,1740523857177,-4258.3,0.00047945,120]
[354477658,1740523857186,-500.0,0.00047945,120]
[354477659,1740523857195,-1064.14,0.00047945,120]
[354477660,1740523857205,-923.48,0.00047945,120]
[354477661,1740523857214,-500.0,0.00047945,120]
[354477662,1740523857224,-3714.28,0.00047945,120]
[354477663,1740523857234,-500.0,0.00047945,120]
[354477664,1740523857243,-500.0,0.00047945,120]
[354477665,1740523857253,-500.0,0.00047945,120]
[354477666,1740523857263,-2811.63,0.00047945,120]
[354477667,1740523857273,-500.0,0.00047945,120]
[354477668,1740523857282,-657.42,0.00047945,120]
[354477669,1740523857292,-2840.63,0.00047945,120]
[354477670,1740523857301,-5487.35,0.00047945,120]
[354477671,1740523857311,-527.96,0.00047945,120]
[354477672,1740523857320,-500.0,0.00047945,120]
[354477673,1740523857330,-1379.62,0.00047945,120]
[354477674,1740523857340,-1664.86,0.00047945,120]
[354477675,1740523857350,-595.9,0.00047945,120]
[354477676,1740523857359,-500.0,0.00047945,120]
[354477677,1740523857368,-1050.04,0.00047945,120]
[354477678,1740523857378,-500.0,0.00047945,120]
[354477679,1740523857387,-500.0,0.00047945,120]
[354477680,1740523857397,-711.18,0.00047945,120]
[354477681,1740523857407,-500.0,0.00047945,120]
[354477682,1740523857416,-500.0,0.00047945,120]
[354477683,1740523857426,-500.0,0.00047945,120]
[354477684,1740523857435,-1262.57,0.00047945,120]
[354477685,1740523857444,-3135.94,0.00047945,120]
[354477686,1740523857454,-500.0,0.00047945,120]
[354477687,1740523857463,-4313.99,0.00047945,120]
[354477688,1740523857474,-5005.04,0.00047945,120]
[354477689,1740523857483,-1692.2,0.00047945,120]
[354477690,1740523857492,-1196.06,0.00047945,120]
[354477691,1740523857502,-500.0,0.00047945,120]
[354477692,1740523857512,-500.0,0.00047945,120]
[354477693,1740523857521,-3291.08,0.00047945,120]
[354477694,1740523857531,-500.0,0.00047945,120]
[354477695,1740523857541,-3117.24,0.00047945,120]
[354477696,1740523857551,-500.0,0.00047945,120]
[354477697,1740523857560,-500.0,0.00047945,120]
[354477698,1740523857570,-500.0,0.00047945,120]
[354477699,1740523857579,-4514.74,0.00047945,120]
[354477700,1740523857589,-500.0,0.00047945,120]
[354477701,1740523857598,-500.0,0.00047945,120]
[354477702,1740523857608,-1370.65,0.00047945,120]
[354477703,1740523857617,-2044.15,0.00047945,120]
[354477704,1740523857627,-4171.98,0.00047945,120]
[354477705,1740523857636,-500.0,0.00047945,120]
[354477706,1740523857645,-500.0,0.00047945,120]
[354477707,1740523857655,-2506.58,0.00047945,120]
[354477708,1740523857664,-500.0,0.00047945,120]
[354477709,1740523857674,-500.0,0.00047945,120]
[354477710,1740523857683,-500.0,0.00047945,120]
[354477711,1740523857693,-500.0,0.00047945,120]
[354477712,1740523857702,-2766.91,0.00047945,120]
[354477713,1740523857711,-1744.72,0.00047945,120]
[354477714,1740523857720,-3744.03,0.00047945,120]
[354477715,1740523857729,-533.84,0.00047945,120]
[354477716,1740523857738,-500.0,0.00047945,120]
[354477717,1740523857747,-500.0,0.00047945,120]
[354477718,1740523857756,-500.0,0.00047945,120]
[354477719,1740523857766,-1247.03,0.00047945,120]
[354477720,1740523857775,-6631.42,0.00047945,120]
[354477721,1740523857785,-500.0,0.00047945,120]
[354477722,1740523857795,-353.88,0.00047945,7]
[354477723,1740523857805,-500.0,0.00047945,120]
[354477724,1740523857814,-2471.8,0.00047945,120]
[354477725,1740523857823,-500.0,0.00047945,30]
[354477726,1740523857831,-8273.72,0.00047945,120]
[354477727,1740523857839,-2613.45,0.00047945,120]
[354477728,1740523857848,-2518.6,0.00047945,120]
[354477729,1740523857856,-2000.0,0.00047945,30]
[354477730,1740523857865,-2379.05,0.00047945,120]
[354477731,1740523857875,-2653.52,0.00047945,120]
[354477732,1740523857884,-500.0,0.00047945,120]
[354477733,1740523857893,-500.0,0.00047945,120]
[354477734,1740523857904,-2653.43,0.00047945,120]
[354477735,1740523857914,-500.0,0.00047945,120]
[354477736,1740523857924,-500.0,0.00047945,120]
[354477737,1740523857933,-2218.11,0.00047945,120]
[354477738,1740523857942,-4748.16,0.00047945,120]
[354477739,1740523857951,-500.0,0.00047945,120]
[354477740,1740523857961,-500.0,0.00047945,120]
[354477741,1740523857970,-713.69,0.00047945,120]
[354477742,1740523857979,-2400.26,0.00047945,120]
[354477743,1740523857990,-2891.89,0.00047945,120]
[354477744,1740523857999,-693.14,0.00047945,120]
[354477745,1740523858009,-500.0,0.00047945,120]
[354477746,1740523858019,-972.2,0.00047945,120]
[354477747,1740523858029,-2728.12,0.00047945,120]
[354477748,1740523858040,-645.08,0.00047945,120]
[354477749,1740523858050,-1447.8,0.00047945,120]
[354477750,1740523858061,-15345.63015684,0.0004798,120]
[354477751,1740523858070,-150.0,0.00047999,30]
[354477752,1740523858151,-100000.0,0.00048,42]
[354477753,1740523858161,-907164.91112735,0.00048,120]
[354477754,1740525032741,-250.0,0.00021,2]
[354477755,1740525032751,-220.0,0.00024133,30]
[354477756,1740525032761,-150.58,0.00026849,2]
[354477757,1740525032771,-150.58,0.00036027,2]
[354477758,1740525032781,-349.58,0.00043815,2]
[354477759,1740525032790,-1000.0,0.00044705,2]
[354477760,1740525032800,-1301.05,0.00044999,120]
[354477761,1740525032810,-1301.05,0.00045027,120]
[354477762,1740525032820,-1301.05,0.00045054,120]
[354477763,1740525032829,-1301.05,0.00045081,120]
[354477764,1740525032839,-1301.05,0.00045109,120]
[354477765,1740525032849,-1301.05,0.00045136,120]
[354477766,1740525032860,-1301.05,0.00045164,120]
[354477767,1740525032870,-1301.05,0.00045191,120]
[354477768,1740525032880,-150.58,0.00045205,2]
[354477769,1740525032890,-1301.05,0.00045218,120]
[354477770,1740525032900,-1301.05,0.00045246,120]
[354477771,1740525032910,-1301.05,0.00045273,120]
[354477772,1740525032919,-1301.05,0.00045301,120]
[354477773,1740525032929,-1301.05,0.00045328,120]
[354477774,1740525032939,-1301.05,0.00045355,120]
[354477775,1740525032949,-1301.05,0.00045383,120]
[354477776,1740525032959,-1301.05,0.0004541,120]
[354477777,1740525032969,-150.08,0.00045434,2]
[354477778,1740525032979,-1301.05,0.00045438,120]
[354477779,1740525032989,-1301.05,0.00045465,120]
[354477780,1740525032998,-1301.05,0.00045492,120]
[354477781,1740525033008,-1301.05,0.0004552,120]
[354477782,1740525033018,-1301.05,0.00045547,120]
[354477783,1740525033027,-1301.05,0.00045575,120]
[354477784,1740525033037,-1301.05,0.00045602,120]
[354477785,1740525033047,-1301.08405304,0.00045629,120]
[354477786,1740525033057,-150.0,0.00045669,2]
[354477787,1740525033067,-250.0,0.00045745,2]
[354477788,1740525033077,-188.32,0.00045764,120]
[354477789,1740525033087,-153.64,0.00045804,2]
[354477790,1740525033097,-10000.0,0.00046,120]
[354477791,1740525033107,-500.00326576,0.00046,4]
[354477792,1740525033117,-349.58,0.00046078,2]
[354477793,1740525033127,-182.05,0.00046178,2]
[354477794,1740525033136,-180.173,0.00046339,2]
[354477795,1740525033146,-213.26282212,0.00046465,15]
[354477796,1740525033155,-479.52,0.00046465,2]
[354477797,1740525033165,-724.2106,0.00046465,2]
[354477798,1740525033175,-312.9035,0.00046465,2]
[354477799,1740525033185,-1397.1313,0.00046465,2]
[354477800,1740525033196,-266.9422,0.00046465,2]
[354477801,1740525033205,-12838.3572,0.00046465,2]
[354477802,1740525033215,-2500.0,0.00046465,2]
[354477803,1740525033225,-1861.449,0.00046465,2]
[354477804,1740525033235,-953.61,0.00046475,77]
[354477805,1740525033245,-166.20652708,0.00046475,24]
[354477806,1740525033256,-226.76777833,0.00046475,18]
[354477807,1740525033265,-9616.0876,0.00046475,2]
[354477808,1740525033275,-5000.0,0.00046475,120]
[354477809,1740525033284,-1013.022,0.00046544,2]
[354477810,1740525033294,-196.78,0.00046544,2]
[354477811,1740525033304,-8283.30669052,0.00046555,4]
[354477812,1740525038397,-1338.93,0.000345,120]
[354477813,1740525038407,-150.0,0.00045205,2]
[354477814,1740525038416,-7840.76393016,0.00046465,15]
[354477815,1740525038426,-274.1029,0.00046465,2]
[354477816,1740525038436,-10745.76833968,0.00046555,4]
[354477817,1740525038446,-6408.16118504,0.00046565,4]
[354477818,1740525038461,-3562.56,0.00046565,4]
[354477819,1740525038628,-8901.8,0.00046565,4]
[354477820,1740525040628,-379.40228999,0.00046565,4]
[354477821,1740525040766,-237640.58943297,0.00046565,4]
[354477822,1740525040777,-167298.515784,0.00046565,4]
[354477823,1740525040787,-576.7436931,0.00046573,7]
[354477824,1740525040797,-500.0,0.00046573,2]
[354477825,1740525040807,-500.0,0.00046574,120]
[354477826,1740525040816,-500.0,0.00046574,120]
[354477827,1740525040826,-169.15750887,0.00046574,120]
[354477828,1740525040837,-500.0,0.00046574,120]
[354477829,1740525040846,-500.0,0.00046574,120]
[354477830,1740525040856,-500.0,0.00046574,120]
[354477831,1740525040867,-500.0,0.00046574,120]
[354477832,1740525040876,-500.50916,0.00046575,120]
[354477833,1740525040886,-500.0,0.00046575,120]
[354477834,1740525040897,-500.0,0.00046575,120]
[354477835,1740525040906,-500.0,0.00046575,120]
[354477836,1740525040916,-500.0,0.00046575,120]
[354477837,1740525040926,-500.0,0.00046575,120]
[354477838,1740525040936,-203.30088894,0.00046575,120]
[354477839,1740525040945,-501.00961371,0.00046575,120]
[354477840,1740525040955,-500.0,0.00046575,120]
[354477841,1740525040965,-500.0,0.00046575,120]
[354477842,1740525040974,-500.0,0.00046575,120]
[354477843,1740525040988,-500.0,0.00046575,120]
[354477844,1740525040998,-500.0,0.00046575,120]
[354477845,1740525041007,-491.40843339,0.00046575,120]
[354477846,1740525041016,-500.0,0.00046575,120]
[354477847,1740525041026,-500.0,0.00046575,120]
[354477848,1740525041035,-300.0,0.00046575,120]
[354477849,1740525041045,-508.54770513,0.00046575,120]
[354477850,1740525041054,-500.0,0.00046575,120]
[354477851,1740525041128,-500.0,0.00046575,120]
[354477852,1740525041138,-500.0,0.00046575,120]
[354477853,1740525041147,-500.0,0.00046575,120]
[354477854,1740525041156,-500.0,0.00046575,16]
[354477855,1740525041166,-500.0,0.00046575,120]
[354477856,1740525041175,-500.0,0.00046575,120]
[354477857,1740525041184,-502.75776324,0.00046575,120]
[354477858,1740525041194,-500.0,0.00046575,120]
[354477859,1740525041203,-500.0,0.00046575,120]
[354477860,1740525041212,-500.0,0.00046575,5]
[354477861,1740525041221,-500.0,0.00046575,120]
[354477862,1740525041231,-502.58922361,0.00046575,120]
[354477863,1740525041240,-500.0,0.00046575,120]
[354477864,1740525041249,-500.0,0.00046575,120]
[354477865,1740525041259,-500.0,0.00046575,120]
[354477866,1740525041268,-500.0,0.00046575,120]
[354477867,1740525041277,-737.51,0.00046575,120]
[354477868,1740525041286,-500.0,0.00046575,120]
[354477869,1740525041296,-535.73,0.00046575,120]
[354477870,1740525041305,-567.94,0.00046575,120]
[354477871,1740525041314,-501.23182657,0.00046575,120]
[354477872,1740525041323,-500.81179611,0.00046575,120]
[354477873,1740525041333,-500.0,0.00046575,120]
[354477874,1740525041343,-500.0,0.00046575,120]
[354477875,1740525041352,-500.0,0.00046575,120]
[354477876,1740525041362,-500.0,0.00046575,120]
[354477877,1740525041371,-1055.43,0.00046575,120]
[354477878,1740525041381,-500.0,0.00046575,120]
[354477879,1740525041390,-643.35,0.00046575,120]
[354477880,1740525041399,-500.0,0.00046575,120]
[354477881,1740525041409,-500.0,0.00046575,120]
[354477882,1740525041418,-749.2,0.00046575,120]
[354477883,1740525041428,-500.0,0.00046575,120]
[354477884,1740525041437,-500.0,0.00046575,120]
[354477885,1740525041446,-500.0,0.00046575,120]
[354477886,1740525041460,-500.0,0.00046575,120]
[354477887,1740525041470,-766.64,0.00046575,120]
[354477888,1740525041479,-500.0,0.00046575,120]
[354477889,1740525041488,-500.0,0.00046575,120]
[354477890,1740525041498,-500.0,0.00046575,120]
[354477891,1740525041508,-500.0,0.00046575,120]
[354477892,1740525041518,-500.0,0.00046575,120]
[354477893,1740525041528,-500.0,0.00046575,120]
[354477894,1740525041540,-1132.0,0.00046575,120]
[354477895,1740525041549,-1008.59,0.00046575,120]
[354477896,1740525041560,-500.0,0.00046575,120]
[354477897,1740525041570,-500.0,0.00046575,120]
[354477898,1740525041579,-500.0,0.00046575,120]
[354477899,1740525041589,-500.0,0.00046575,120]
[354477900,1740525041599,-500.0,0.00046575,120]
[354477901,1740525041608,-500.0,0.00046575,120]
[354477902,1740525041619,-500.0,0.00046575,120]
[354477903,1740525041629,-500.0,0.00046575,120]
[354477904,1740525041638,-500.0,0.00046575,120]
[354477905,1740525041647,-500.0,0.00046575,120]
[354477906,1740525041657,-500.0,0.00046575,120]
[354477907,1740525041667,-500.0,0.00046575,120]
[354477908,1740525041676,-1000.0,0.00046575,120]
[354477909,1740525041686,-888.73,0.00046575,120]
[354477910,1740525041695,-500.0,0.00046575,120]
[354477911,1740525041705,-500.0,0.00046575,120]
[354477912,1740525041714,-500.0,0.00046575,120]
[354477913,1740525041724,-500.0,0.00046575,120]
[354477914,1740525041734,-500.0,0.00046575,120]
[354477915,1740525041744,-500.0,0.00046575,120]
[354477916,1740525041753,-500.0,0.00046575,120]
[354477917,1740525041763,-500.0,0.00046575,120]
[354477918,1740525041772,-879.47,0.00046575,120]
[354477919,1740525041782,-1193.67,0.00046575,120]
[354477920,1740525041792,-719.66,0.00046575,120]
[354477921,1740525041802,-630.55261257,0.00046575,120]
[354477922,1740525041811,-500.0,0.00046575,120]
[354477923,1740525041821,-500.0,0.00046575,120]
[354477924,1740525041831,-500.0,0.00046575,120]
[354477925,1740525041840,-500.0,0.00046575,120]
[354477926,1740525041850,-657.62,0.00046575,120]
[354477927,1740525041859,-500.0,0.00046575,120]
[354477928,1740525041869,-1058.68,0.00046575,120]
[354477929,1740525041879,-1324.06,0.00046575,120]
[354477930,1740525041888,-405.30198352,0.00046575,120]
[354477931,1740525041898,-500.0,0.00046575,120]
[354477932,1740525041908,-500.0,0.00046575,120]
[354477933,1740525041918,-500.0,0.00046575,120]
[354477934,1740525041929,-500.0,0.00046575,120]
[354477935,1740525041938,-500.0,0.00046575,120]
[354477936,1740525041948,-500.0,0.00046575,120]
[354477937,1740525041958,-1060.27,0.00046575,120]
[354477938,1740525041968,-500.0,0.00046575,120]
[354477939,1740525041978,-500.0,0.00046575,120]
[354477940,1740525041987,-500.0,0.00046575,120]
[354477941,1740525041997,-500.0,0.00046575,120]
[354477942,1740525042006,-742.16,0.00046575,30]
[354477943,1740525042015,-500.0,0.00046575,120]
[354477944,1740525042025,-500.0,0.00046575,120]
[354477945,1740525042034,-504.52476255,0.00046575,120]
[354477946,1740525042044,-979.89,0.00046575,120]
[354477947,1740525042053,-500.0,0.00046575,120]
[354477948,1740525042063,-500.0,0.00046575,120]
[354477949,1740525042072,-979.19,0.00046575,120]
[354477950,1740525042082,-500.0,0.00046575,120]
[354477951,1740525042091,-526.24,0.00046575,120]
[354477952,1740525042100,-500.0,0.00046575,120]
[354477953,1740525042110,-500.0,0.00046575,120]
[354477954,1740525042120,-500.0,0.00046575,120]
[354477955,1740525042129,-500.0,0.00046575,120]
[354477956,1740525042138,-500.0,0.00046575,120]
[354477957,1740525042148,-500.0,0.00046575,120]
[354477958,1740525042157,-500.0,0.00046575,120]
[354477959,1740525042167,-500.0,0.00046575,120]
[354477960,1740525042175,-500.0,0.00046575,120]
[354477961,1740525042185,-500.0,0.00046575,120]
[354477962,1740525042194,-500.66772413,0.00046575,120]
[354477963,1740525042203,-1303.54,0.00046575,120]
[354477964,1740525042212,-180.66616947,0.00046575,120]
[354477965,1740525042222,-1208.28,0.00046575,120]
[354477966,1740525042231,-500.0,0.00046575,120]
[354477967,1740525042240,-500.0,0.00046575,120]
[354477968,1740525042249,-500.0,0.00046575,120]
[354477969,1740525042258,-500.0,0.00046575,120]
[354477970,1740525042267,-500.0,0.00046575,120]
[354477971,1740525042276,-500.0,0.00046575,120]
[354477972,1740525042285,-519.21,0.00046575,120]
[354477973,1740525042295,-926.21,0.00046575,120]
[354477974,1740525042305,-500.0,0.00046575,120]
[354477975,1740525042314,-413.30369644,0.00046575,120]
[354477976,1740525042323,-1397.64,0.00046575,120]
[354477977,1740525042333,-503.02623197,0.00046575,30]
[354477978,1740525042342,-500.0,0.00046575,120]
[354477979,1740525042351,-865.85,0.00046575,120]
[354477980,1740525042361,-990.86,0.00046575,120]
[354477981,1740525042371,-500.0,0.00046575,120]
[354477982,1740525042381,-500.0,0.00046575,120]
[354477983,1740525042390,-500.0,0.00046575,120]
[354477984,1740525042399,-500.0,0.00046575,120]
[354477985,1740525042409,-500.0,0.00046575,120]
[354477986,1740525042419,-1052.77,0.00046575,120]
[354477987,1740525042428,-992.97,0.00046575,120]
[354477988,1740525042437,-500.0,0.00046575,120]
[354477989,1740525042447,-500.0,0.00046575,120]
[354477990,1740525042458,-500.0,0.00046575,120]
[354477991,1740525042469,-500.0,0.00046575,120]
[354477992,1740525042478,-500.0,0.00046575,120]
[354477993,1740525042487,-500.0,0.00046575,120]
[354477994,1740525042498,-500.0,0.00046575,120]
[354477995,1740525042508,-506.62076408,0.00046575,120]
[354477996,1740525042517,-1375.47,0.00046575,120]
[354477997,1740525042526,-667.29,0.00046575,120]
[354477998,1740525042536,-572.28,0.00046575,120]
[354477999,1740525042545,-642.04169545,0.00046575,120]
[354478000,1740525042556,-500.0,0.00046575,120]
[354478001,1740525042566,-587.91,0.00046575,120]
[354478002,1740525042575,-500.0,0.00046575,120]
[354478003,1740525042585,-500.0,0.00046575,120]
[354478004,1740525042593,-500.0,0.00046575,120]
[354478005,1740525042603,-1632.82,0.00046575,120]
[354478006,1740525042612,-537.91712387,0.00046575,120]
[354478007,1740525042623,-525.79,0.00046575,120]
[354478008,1740525042632,-500.0,0.00046575,120]
[354478009,1740525042641,-512.73938511,0.00046575,120]
[354478010,1740525042650,-500.0,0.00046575,120]
[354478011,1740525042659,-500.0,0.00046575,120]
[354478012,1740525042669,-500.0,0.00046575,120]
[354478013,1740525042678,-700.38,0.00046575,120]
[354478014,1740525042687,-500.0,0.00046575,120]
[354478015,1740525042697,-500.0,0.00046575,120]
[354478016,1740525042706,-500.0,0.00046575,120]
[354478017,1740525042716,-500.0,0.00046575,120]
[354478018,1740525042725,-500.0,0.00046575,120]
[354478019,1740525042734,-582.90590539,0.00046575,120]
[354478020,1740525042744,-1439.25,0.00046575,120]
[354478021,1740525042753,-500.0,0.00046575,120]
[354478022,1740525042762,-500.0,0.00046575,120]
[354478023,1740525042771,-500.0,0.00046575,120]
[354478024,1740525042781,-500.0,0.00046575,120]
[354478025,1740525042790,-500.0,0.00046575,120]
[354478026,1740525042800,-500.0,0.00046575,120]
[354478027,1740525042810,-500.0,0.00046575,120]
[354478028,1740525042819,-500.0,0.00046575,120]
[354478029,1740525042829,-500.0,0.00046575,120]
[354478030,1740525042838,-500.0,0.00046575,120]
[354478031,1740525042848,-500.0,0.00046575,120]
[354478032,1740525042857,-1112.37,0.00046575,120]
[354478033,1740525042867,-500.0,0.00046575,120]
[354478034,1740525042877,-500.0,0.00046575,120]
[354478035,1740525042886,-671.76,0.00046575,120]
[354478036,1740525042896,-500.0,0.00046575,120]
[354478037,1740525042905,-500.0,0.00046575,120]
[354478038,1740525042914,-500.0,0.00046575,120]
[354478039,1740525042923,-1287.45,0.00046575,120]
[354478040,1740525042933,-500.0,0.00046575,120]
[354478041,1740525042942,-500.0,0.00046575,120]
[354478042,1740525042951,-1660.96,0.00046575,120]
[354478043,1740525042960,-563.69,0.00046575,120]
[354478044,1740525042969,-500.0,0.00046575,120]
[354478045,1740525042978,-500.0,0.00046575,120]
[354478046,1740525042987,-500.0,0.00046575,120]
[354478047,1740525042996,-175.951404,0.00046575,120]
[354478048,1740525043005,-500.0,0.00046575,120]
[354478049,1740525043015,-500.0,0.00046575,120]
[354478050,1740525043024,-500.0,0.00046575,120]
[354478051,1740525043033,-535.69,0.00046575,60]
[354478052,1740525043042,-154.473825,0.00046575,120]
[354478053,1740525043051,-500.0,0.00046575,120]
[354478054,1740525043060,-1565.68,0.00046575,120]
[354478055,1740525043069,-530.26,0.00046575,120]
[354478056,1740525043078,-500.0,0.00046575,120]
[354478057,1740525043088,-500.0,0.00046575,120]
[354478058,1740525043097,-405.50707,0.00046575,120]
[354478059,1740525043106,-500.0,0.00046575,120]
[354478060,1740525043115,-500.0,0.00046575,120]
[354478061,1740525043124,-1581.42,0.00046575,120]
[354478062,1740525043133,-500.0,0.00046575,120]
[354478063,1740525043143,-500.0,0.00046575,120]
[354478064,1740525043152,-500.0,0.00046575,120]
[354478065,1740525043161,-500.0,0.00046575,120]
[354478066,1740525043171,-827.4,0.00046575,120]
[354478067,1740525043180,-720.88,0.00046575,120]
[354478068,1740525043190,-519.16,0.00046575,120]
[354478069,1740525043199,-950.592313,0.00046575,120]
[354478070,1740525043207,-419.95213798,0.00046575,120]
[354478071,1740525043216,-1460.84,0.00046575,120]
[354478073,1740525043225,-708.99,0.00046575,120]
[354478074,1740525043235,-500.0,0.00046575,120]
[354478076,1740525043244,-508.69,0.00046575,120]
[354478077,1740525043253,-500.0,0.00046575,120]
[354478078,1740525043262,-935.68,0.00046575,120]
[354478079,1740525043271,-500.0,0.00046575,120]
[354478080,1740525043280,-547.34,0.00046575,120]
[354478081,1740525043290,-500.0,0.00046575,120]
[354478082,1740525043299,-500.0,0.00046575,120]
[354478083,1740525043308,-500.0,0.00046575,120]
[354478084,1740525043318,-500.0,0.00046575,120]
[354478085,1740525043327,-545.23924721,0.00046575,120]
[354478086,1740525043336,-500.0,0.00046575,120]
[354478087,1740525043345,-1341.71,0.00046575,120]
[354478088,1740525043354,-500.0,0.00046575,120]
[354478089,1740525043363,-500.0,0.00046575,120]